bitfinex/quotes_BTCUSD_20241111
["timestamp","ask_amount","ask_price","bid_price","bid_amount"]
[1731360609772,4.18522432,87857.0,87856.0,2.18934843]
[1731360610388,4.18313849,87857.0,87856.0,2.18934843]
[1731360610874,4.17977347,87857.0,87856.0,2.18934843]
[1731360611097,4.17977347,87857.0,87856.0,1.71634843]
[1731360611262,4.17977347,87857.0,87856.0,0.83034843]
[1731360611462,4.117848,87857.0,87856.0,0.77807066]
[1731360611663,4.10620525,87857.0,87856.0,0.77807066]
[1731360611919,4.04890525,87857.0,87856.0,0.77807066]
[1731360613703,4.04890525,87857.0,87856.0,1.34399642]
[1731360613914,4.04840525,87857.0,87856.0,1.34399642]
[1731360614881,4.04840525,87857.0,87856.0,0.77807066]
[1731360615942,4.03966571,87857.0,87856.0,1.00341288]
[1731360616370,4.03966571,87857.0,87856.0,0.77807066]
[1731360616807,4.03950917,87857.0,87856.0,0.77807066]
[1731360617285,4.03605182,87857.0,87856.0,0.80882892]
[1731360617889,4.03317152,87857.0,87856.0,0.80882892]
[1731360618110,4.03317152,87857.0,87856.0,0.77807066]
[1731360618394,4.03317152,87857.0,87856.0,1.00336153]
[1731360618623,3.93317152,87857.0,87856.0,0.77807066]
[1731360619499,3.92581912,87857.0,87856.0,0.77807066]
[1731360622560,3.92559155,87857.0,87856.0,0.77807066]
[1731360622795,3.92379155,87857.0,87856.0,0.77807066]
[1731360624587,3.92379155,87857.0,87856.0,0.62288034]
[1731360624777,3.92249155,87857.0,87856.0,0.62288034]
[1731360625202,3.91073303,87857.0,87856.0,0.62288034]
[1731360625613,3.91073303,87857.0,87856.0,0.53927589]
[1731360625763,3.91273303,87857.0,87856.0,0.34713723]
[1731360625969,3.91073303,87857.0,87856.0,0.52441642]
[1731360626199,3.91073303,87857.0,87856.0,0.34713723]
[1731360627192,3.91273303,87857.0,87856.0,0.3116663]
[1731360627423,3.91073303,87857.0,87856.0,0.27920741]
[1731360627896,3.91273303,87857.0,87856.0,0.26611956]
[1731360630729,3.91273303,87857.0,87856.0,0.21759463]
[1731360630941,3.91273303,87857.0,87856.0,0.17249262]
[1731360632036,3.91473303,87857.0,87856.0,0.10951596]
[1731360632391,3.91473303,87857.0,87856.0,0.04563887]
[1731360632813,3.91273303,87857.0,87856.0,0.04563887]
[1731360633021,3.90873303,87857.0,87856.0,0.04563887]
[1731360633228,0.0931,87856.0,87855.0,0.0017466]
[1731360633422,0.08562285,87856.0,87854.0,1.18557654]
[1731360633991,0.682,87855.0,87854.0,1.18557654]
[1731360634612,0.682,87855.0,87854.0,1.11907913]
[1731360635491,0.682,87855.0,87854.0,1.01907913]
[1731360635956,0.681,87856.0,87854.0,1.01907913]
[1731360636156,0.00284763,87855.0,87854.0,0.98258347]
[1731360636307,0.68384763,87855.0,87854.0,0.94170037]
[1731360636517,0.681,87855.0,87854.0,0.94170037]
[1731360637094,3.90673303,87857.0,87854.0,0.26070037]
[1731360637321,0.6848478,87856.0,87854.0,0.26070037]
[1731360637673,0.682,87855.0,87854.0,0.26070037]
[1731360637848,0.6791,87855.0,87854.0,0.24644331]
[1731360638066,0.6791,87855.0,87854.0,0.20312318]
[1731360638250,0.84993212,87855.0,87854.0,0.13734121]
[1731360638473,0.6791,87855.0,87854.0,0.13734121]
[1731360638677,0.6791,87855.0,87854.0,0.06474752]
[1731360638678,0.7763,87855.0,87854.0,0.06474752]
[1731360638822,0.7763,87855.0,87851.0,0.0017066]
[1731360638823,0.0989,87853.0,87851.0,0.0017066]
[1731360639033,0.09286471,87853.0,87851.0,0.0017066]
[1731360639236,0.08114102,87853.0,87851.0,0.0017066]
[1731360639571,0.07645729,87853.0,87850.0,0.3324231]
[1731360639743,0.07645729,87853.0,87850.0,0.24280741]
[1731360639943,0.07645729,87853.0,87850.0,0.22978105]
[1731360640178,0.06719834,87853.0,87850.0,0.22978105]
[1731360640348,0.06719834,87853.0,87828.0,0.17083212]
[1731360640727,0.05749569,87853.0,87823.0,0.001704]
[1731360640937,0.05349569,87853.0,87823.0,0.001704]
[1731360641114,0.65681439,87852.0,87805.0,0.0017044]
[1731360641467,0.17083212,87845.0,87815.0,0.17083212]
[1731360641709,0.17083212,87845.0,87807.0,0.17083212]
[1731360641887,0.17083212,87834.0,87794.0,0.17083212]
[1731360642114,0.6505073,87833.0,87812.0,0.17083212]
[1731360642272,0.15075211,87832.0,87803.0,0.17083212]
[1731360642492,0.14108218,87832.0,87803.0,0.17083212]
[1731360642688,0.15084717,87822.0,87794.0,0.17083212]
[1731360642859,0.15084717,87822.0,87795.0,0.17083212]
[1731360643064,0.09708246,87832.0,87799.0,0.17083212]
[1731360643283,0.17083212,87823.0,87785.0,0.17083212]
[1731360643496,0.17083212,87845.0,87805.0,0.17283212]
[1731360643497,0.64281418,87830.0,87805.0,0.17283212]
[1731360643705,0.17083212,87821.0,87798.0,0.002]
[1731360643897,0.12659946,87821.0,87801.0,0.002]
[1731360644124,0.11681648,87821.0,87800.0,0.002]
[1731360644342,0.74384998,87830.0,87811.0,0.002]
[1731360644570,0.09006634,87821.0,87811.0,0.002]
[1731360644775,0.74384998,87830.0,87811.0,0.002]
[1731360644985,0.71602791,87830.0,87811.0,0.002]
[1731360645141,0.50273708,87844.0,87811.0,0.002]
[1731360645355,2.0,87821.0,87809.0,0.17083212]
[1731360645533,2.0,87821.0,87794.0,0.16977012]
[1731360645534,1.99684905,87821.0,87794.0,0.16977012]
[1731360645736,0.17083212,87820.0,87794.0,0.16977012]
[1731360645949,0.097,87819.0,87795.0,0.0563497]
[1731360646163,0.097,87819.0,87785.0,0.17168572]
[1731360646164,0.097,87819.0,87786.0,0.05611085]
[1731360646400,0.07140426,87819.0,87786.0,0.05611085]
[1731360646649,0.17083212,87802.0,87786.0,0.05611085]
[1731360646780,0.13534145,87811.0,87786.0,0.05611085]
[1731360646985,0.17083212,87800.0,87786.0,0.05611085]
[1731360647227,0.01898122,87811.0,87788.0,0.05649064]
[1731360647431,0.17083212,87805.0,87788.0,0.05649064]
[1731360648234,0.17083212,87805.0,87785.0,0.0008536]
[1731360648664,0.16194889,87805.0,87785.0,0.0008536]
[1731360648856,0.13335732,87805.0,87785.0,0.0008536]
[1731360649090,0.47860781,87819.0,87787.0,0.17083212]
[1731360649305,0.17083212,87803.0,87785.0,0.0008536]
[1731360649524,0.47158382,87819.0,87787.0,0.17083212]
[1731360649741,0.17083212,87808.0,87785.0,0.0008536]
[1731360649943,0.13536425,87820.0,87788.0,0.17083212]
[1731360649944,0.17083212,87820.0,87788.0,0.17083212]
[1731360650154,0.09437058,87809.0,87788.0,0.17083212]
[1731360650583,0.08214314,87809.0,87789.0,0.05613354]
[1731360650740,0.08214314,87809.0,87785.0,0.05735336]
[1731360650946,0.17083212,87820.0,87788.0,0.05649064]
[1731360651141,0.17083212,87808.0,87788.0,0.05649064]
[1731360651359,0.0977,87819.0,87788.0,0.05649064]
[1731360651517,0.0977,87808.0,87786.0,0.05611085]
[1731360651716,0.17083212,87809.0,87786.0,0.05611085]
[1731360651918,0.15731951,87809.0,87786.0,0.05611085]
[1731360652175,0.15731951,87809.0,87785.0,0.0008536]
[1731360652176,0.17083212,87800.0,87788.0,0.05649064]
[1731360652420,0.17083212,87800.0,87786.0,0.05611085]
[1731360652421,0.16404272,87800.0,87786.0,0.05611085]
[1731360652798,0.13331712,87800.0,87785.0,0.0008536]
[1731360653188,0.17083212,87799.0,87785.0,0.0008536]
[1731360653852,0.1142367,87799.0,87785.0,0.0008536]
[1731360654044,0.002,87808.0,87785.0,0.0008536]
[1731360654217,0.16388946,87800.0,87785.0,0.0008536]
[1731360654419,0.002,87806.0,87785.0,0.0008536]
[1731360654706,0.17083212,87797.0,87785.0,0.0008536]
[1731360654890,0.4011213,87796.0,87785.0,0.0008536]
[1731360655181,0.002,87793.0,87785.0,0.0008536]
[1731360655376,0.4011213,87792.0,87785.0,0.0008536]
[1731360655526,0.4011213,87791.0,87785.0,0.0008536]
[1731360655705,0.57195342,87790.0,87785.0,0.0008536]
[1731360655911,0.40058369,87790.0,87785.0,0.0008536]
[1731360656113,0.39418963,87790.0,87785.0,0.0008536]
[1731360656317,0.39413363,87790.0,87785.0,0.0008536]
[1731360656884,0.0928,87789.0,87785.0,0.0008536]
[1731360657438,0.0928,87786.0,87785.0,0.0008536]
[1731360657670,0.07938351,87786.0,87785.0,0.0008536]
[1731360658236,0.47095045,87786.0,87785.0,0.0008536]
[1731360658490,0.46895045,87786.0,87785.0,0.0008536]
[1731360658836,0.40611753,87786.0,87785.0,0.0008536]
[1731360659058,0.40478453,87786.0,87785.0,0.0008536]
[1731360659256,0.39858734,87786.0,87785.0,0.0008536]
[1731360659567,0.38412563,87786.0,87785.0,0.0008536]
[1731360659759,0.38612563,87786.0,87785.0,0.0008536]
[1731360659972,0.002,87776.0,87768.0,0.001707]
[1731360660143,0.37636105,87775.0,87769.0,0.17083212]
[1731360660356,0.37636105,87775.0,87768.0,0.001707]
[1731360660503,0.17083212,87774.0,87768.0,0.001707]
[1731360660705,0.37636105,87775.0,87768.0,0.001707]
[1731360660945,0.17283212,87774.0,87768.0,0.001707]
[1731360661160,0.002,87769.0,87768.0,0.001707]
[1731360661938,0.1696118,87774.0,87768.0,0.001707]
[1731360662350,0.37636105,87775.0,87768.0,0.001707]
[1731360662550,0.17083212,87774.0,87768.0,0.001707]
[1731360663430,0.37636105,87775.0,87768.0,0.001707]
[1731360663829,0.37120267,87775.0,87768.0,0.001707]
[1731360663984,0.17083212,87772.0,87768.0,0.001707]
[1731360664202,0.17083212,87770.0,87768.0,0.001707]
[1731360664403,0.17083212,87782.0,87722.0,0.27083212]
[1731360664404,0.18785798,87723.0,87722.0,0.27083212]
[1731360664643,0.17536122,87723.0,87722.0,0.27083212]
[1731360664850,0.17536122,87723.0,87722.0,0.1]
[1731360665165,0.16657201,87723.0,87722.0,0.1]
[1731360665367,0.16189618,87723.0,87722.0,0.1]
[1731360665553,0.14916895,87736.0,87698.0,0.0008535]
[1731360665700,0.16088461,87729.0,87699.0,0.05662286]
[1731360666113,0.17083212,87718.0,87704.0,0.05608952]
[1731360666299,0.17083212,87718.0,87699.0,0.05762286]
[1731360666300,0.17083212,87708.0,87699.0,0.05762286]
[1731360666530,2.0,87723.0,87698.0,0.0008535]
[1731360666531,0.13456556,87707.0,87698.0,0.0008535]
[1731360666688,0.02213939,87707.0,87698.0,0.0008535]
[1731360667327,1.62621341,87723.0,87699.0,0.02844505]
[1731360667560,1.62621341,87723.0,87718.0,0.002]
[1731360667709,1.60835666,87723.0,87719.0,0.023]
[1731360667922,1.49623986,87723.0,87722.0,0.025]
[1731360668127,1.44295782,87723.0,87722.0,0.08119399]
[1731360668386,1.43816924,87723.0,87722.0,0.08119399]
[1731360668595,1.43816924,87723.0,87712.0,0.05606155]
[1731360668596,1.36733294,87723.0,87712.0,0.05606155]
[1731360668737,0.17083212,87721.0,87712.0,0.05606155]
[1731360668948,0.85283212,87721.0,87699.0,0.05662286]
[1731360669174,1.41733294,87723.0,87698.0,0.0008535]
[1731360669175,0.17083212,87700.0,87698.0,0.0008535]
[1731360669389,0.6811465,87698.0,87689.0,0.00068428]
[1731360670247,0.56799083,87698.0,87689.0,0.00068428]
[1731360670456,0.0992,87697.0,87689.0,0.00013778]
[1731360670672,0.09880192,87697.0,87695.0,0.17083212]
[1731360670888,0.09880192,87697.0,87690.0,0.05723416]
[1731360671090,0.17083212,87706.0,87701.0,0.002]
[1731360671330,0.14569051,87715.0,87702.0,0.05715293]
[1731360671540,0.17083212,87706.0,87702.0,0.05715293]
[1731360671734,0.14569051,87715.0,87702.0,0.05715293]
[1731360672015,0.14569051,87715.0,87702.0,0.05915293]
[1731360672230,0.14569051,87715.0,87702.0,0.002]
[1731360672446,0.14569051,87715.0,87703.0,0.05771615]
[1731360672655,0.14569051,87715.0,87710.0,0.05794192]
[1731360672899,0.13714818,87715.0,87703.0,0.05771615]
[1731360673112,0.13714818,87715.0,87692.0,0.1]
[1731360673113,0.13714818,87715.0,87693.0,0.05795114]
[1731360673329,0.13714818,87715.0,87689.0,0.00013778]
[1731360673330,0.56799083,87714.0,87690.0,0.05723416]
[1731360673575,0.73882295,87713.0,87690.0,0.05723416]
[1731360673742,0.73872979,87713.0,87690.0,0.05723416]
[1731360674065,0.17083212,87712.0,87689.0,0.00013778]
[1731360674480,0.17083212,87702.0,87689.0,0.00013778]
[1731360674685,0.17083212,87712.0,87703.0,0.32916788]
[1731360675245,0.17083212,87712.0,87689.0,0.00013778]
[1731360675246,0.12505823,87711.0,87689.0,0.00013778]
[1731360675619,0.17083212,87710.0,87689.0,0.00013778]
[1731360675852,0.17083212,87701.0,87689.0,0.00013778]
[1731360676075,0.04088432,87700.0,87689.0,0.00013778]
[1731360676276,0.17083212,87710.0,87689.0,0.00013778]
[1731360676277,0.21171644,87699.0,87689.0,0.00013778]
[1731360676480,0.04088432,87698.0,87689.0,0.00013778]
[1731360677092,0.04088432,87698.0,87690.0,0.17083212]
[1731360677366,0.17083212,87711.0,87695.0,0.05674386]
[1731360677552,0.17083212,87700.0,87690.0,0.05706212]
[1731360677745,0.17083212,87711.0,87694.0,0.0578213]
[1731360678009,0.17083212,87701.0,87689.0,0.00013778]
[1731360678124,0.17083212,87711.0,87689.0,0.00013778]
[1731360678733,0.17083212,87701.0,87689.0,0.00013778]
[1731360678982,0.17083212,87711.0,87689.0,0.00013778]
[1731360679180,0.17083212,87692.0,87689.0,0.00013778]
[1731360679397,0.17083212,87711.0,87689.0,0.00013778]
[1731360679398,0.17083212,87691.0,87689.0,0.00013778]
[1731360679641,0.17083212,87711.0,87689.0,0.00013778]
[1731360679868,0.17083212,87702.0,87689.0,0.00013778]
[1731360680453,0.5101763,87671.0,87659.0,0.05753573]
[1731360680654,0.17083212,87711.0,87669.0,0.17083212]
[1731360680655,0.4601763,87670.0,87669.0,0.17083212]
[1731360680874,0.40410348,87670.0,87669.0,0.002]
[1731360681101,0.23503643,87670.0,87669.0,0.05935045]
[1731360681322,0.23503643,87691.0,87669.0,0.05935045]
[1731360681534,0.17083212,87692.0,87691.0,0.05931107]
[1731360682154,0.23503643,87699.0,87690.0,0.0573582]
[1731360682352,0.23503643,87699.0,87691.0,0.081]
[1731360682574,0.23503643,87710.0,87692.0,0.05700855]
[1731360682795,0.17083212,87701.0,87692.0,0.15700855]
[1731360683045,0.17083212,87711.0,87692.0,0.15700855]
[1731360683448,0.17083212,87711.0,87707.0,0.05776356]
[1731360683643,0.16953212,87711.0,87707.0,0.05776356]
[1731360683796,0.14193212,87711.0,87702.0,0.05708973]
[1731360683999,0.33516855,87718.0,87717.0,0.05970085]
[1731360684222,0.16433643,87722.0,87718.0,0.002]
[1731360684449,1.1185527,87887.0,87722.0,0.001]
[1731360684450,1.22847678,87723.0,87722.0,0.001]
[1731360684680,1.22847678,87723.0,87719.0,0.05672751]
[1731360684681,1.14657678,87723.0,87719.0,0.05672751]
[1731360684872,0.17083212,87720.0,87714.0,0.05679821]
[1731360685078,1.05187678,87723.0,87714.0,0.05679821]
[1731360685508,0.98347678,87723.0,87722.0,0.002]
[1731360685686,0.74051295,87723.0,87722.0,0.18746821]
[1731360685917,0.6587633,87723.0,87722.0,0.28746821]
[1731360686132,0.5441501,87723.0,87722.0,0.28746821]
[1731360686350,0.29232501,87723.0,87722.0,0.29246821]
[1731360686574,0.17083212,87735.0,87734.0,0.05842275]
[1731360686771,0.15542376,87747.0,87746.0,0.002]
[1731360687079,0.12368666,87747.0,87746.0,0.05817955]
[1731360687285,0.17083212,87760.0,87757.0,0.002]
[1731360687473,0.17083212,87760.0,87758.0,0.05632194]
[1731360687609,0.17083212,87760.0,87729.0,0.005]
[1731360687610,0.17083212,87760.0,87756.0,0.05618564]
[1731360687983,0.078,87798.0,87767.0,0.05813701]
[1731360687984,0.04980443,87768.0,87767.0,0.05813701]
[1731360688201,0.6567,87790.0,87784.0,0.05686391]
[1731360688442,0.58465207,87789.0,87775.0,0.05648878]
[1731360688709,0.01271443,87928.0,87755.0,0.049]
[1731360688710,0.60923403,87850.0,87807.0,0.15631244]
[1731360688897,0.6176725,87809.0,87807.0,0.15631244]
[1731360689103,0.53638403,87850.0,87807.0,0.15631244]
[1731360689104,0.682,87849.0,87807.0,0.15631244]
[1731360689310,0.6153725,87840.0,87812.0,0.05686685]
[1731360689530,0.0348,87848.0,87808.0,0.05600815]
[1731360689765,0.0348,87848.0,87783.0,0.047]
[1731360689766,0.6834725,87828.0,87805.0,0.05643381]
[1731360690002,0.682,87847.0,87817.0,0.05631974]
[1731360690199,0.6415725,87828.0,87805.0,0.05643381]
[1731360690336,0.6780725,87837.0,87805.0,0.05643381]
[1731360690540,0.682,87836.0,87797.0,0.05621204]
[1731360690741,0.682,87836.0,87804.0,0.0566193]
[1731360690937,0.682,87836.0,87804.0,0.0586193]
[1731360691153,0.682,87836.0,87783.0,0.047]
[1731360691154,0.632,87836.0,87817.0,0.05652309]
[1731360691403,0.6834725,87833.0,87811.0,0.05643113]
[1731360691606,0.6834725,87833.0,87806.0,0.05644275]
[1731360691821,0.632,87848.0,87805.0,0.002]
[1731360691822,0.632,87848.0,87805.0,0.05606597]
[1731360691979,0.6834725,87849.0,87794.0,0.005]
[1731360691980,0.6834725,87840.0,87816.0,0.05681975]
[1731360692287,0.6451725,87840.0,87816.0,0.05681975]
[1731360692481,0.6307725,87849.0,87827.0,0.0563267]
[1731360692702,0.62881812,87849.0,87827.0,0.0563267]
[1731360692913,0.632,87855.0,87829.0,0.05639558]
[1731360693118,0.6834725,87848.0,87827.0,0.0563267]
[1731360693296,0.632,87855.0,87828.0,0.002]
[1731360693497,0.6834725,87859.0,87829.0,0.05639558]
[1731360693498,0.0017104,87850.0,87829.0,0.05639558]
[1731360693765,0.0017104,87850.0,87820.0,0.0822]
[1731360693766,0.0017104,87850.0,87842.0,0.15612969]
[1731360693960,0.0017104,87850.0,87833.0,0.1]
[1731360693961,0.0017104,87850.0,87838.0,0.05627418]
[1731360694205,3.85168992,87857.0,87856.0,0.002]
[1731360694428,3.85168992,87857.0,87856.0,0.06360191]
[1731360694629,3.79479396,87857.0,87856.0,0.14580191]
[1731360694754,3.79479396,87857.0,87856.0,0.24580191]
[1731360694948,3.79479396,87857.0,87856.0,0.23298972]
[1731360695159,3.79479396,87857.0,87856.0,0.2261582]
[1731360695160,3.41049396,87857.0,87856.0,0.2261582]
[1731360695386,3.40510667,87857.0,87856.0,0.16160191]
[1731360695627,3.40510667,87857.0,87845.0,0.05673867]
[1731360695835,3.40510667,87857.0,87838.0,0.06122768]
[1731360696070,3.40510667,87857.0,87840.0,0.06178128]
[1731360696273,3.40510667,87857.0,87819.0,0.05614713]
[1731360696471,3.40510667,87857.0,87818.0,0.005]
[1731360696472,3.40510667,87857.0,87838.0,0.06122768]
[1731360697393,3.40510667,87857.0,87837.0,0.170766]
[1731360697394,3.35327225,87857.0,87841.0,0.06135091]
[1731360697614,3.35327225,87857.0,87845.0,0.05673867]
[1731360697825,3.35131909,87857.0,87845.0,0.05673867]
[1731360698042,3.35131909,87857.0,87805.0,0.005]
[1731360698043,3.35131909,87857.0,87854.0,0.005]
[1731360698265,3.35131909,87857.0,87856.0,0.05663855]
[1731360698477,3.35131909,87857.0,87856.0,0.06163855]
[1731360698690,3.35131909,87857.0,87856.0,0.06663855]
[1731360698949,3.21977653,87857.0,87856.0,0.07163855]
[1731360699166,3.06760312,87857.0,87856.0,0.07163855]
[1731360700033,3.06760312,87857.0,87856.0,0.06163855]
[1731360700331,3.06760312,87857.0,87810.0,0.1]
[1731360700332,3.06760312,87857.0,87854.0,0.0565984]
[1731360700535,3.06760312,87857.0,87854.0,0.0615984]
[1731360701186,3.01760312,87857.0,87856.0,0.16623606]
[1731360701402,3.01760312,87857.0,87856.0,0.17123606]
[1731360702270,3.01760312,87857.0,87856.0,0.06623606]
[1731360702476,3.01760312,87857.0,87856.0,0.19937408]
[1731360702692,2.92672312,87857.0,87856.0,0.17323606]
[1731360702882,2.92672312,87857.0,87856.0,0.17123606]
[1731360703094,2.81312312,87857.0,87856.0,0.16123606]
[1731360703310,3.33879087,87857.0,87849.0,0.0565817]
[1731360703529,0.170766,87852.0,87827.0,0.05622417]
[1731360703694,0.6309,87851.0,87818.0,0.05681352]
[1731360703928,0.0771,87849.0,87828.0,0.05655819]
[1731360704260,0.170766,87841.0,87804.0,0.005]
[1731360704464,0.582,87840.0,87818.0,0.05681352]
[1731360704675,0.170766,87837.0,87820.0,0.05661087]
[1731360704933,0.170766,87837.0,87828.0,0.05655819]
[1731360705077,0.170766,87829.0,87828.0,0.05655819]
[1731360705294,0.536554,87829.0,87828.0,0.05655819]
[1731360706172,0.437644,87848.0,87828.0,0.05655819]
[1731360706401,0.170766,87829.0,87828.0,0.05655819]
[1731360706526,0.437644,87847.0,87828.0,0.05655819]
[1731360706727,0.170766,87841.0,87828.0,0.05655819]
[1731360707031,0.414922,87847.0,87828.0,0.05655819]
[1731360707377,0.170766,87841.0,87828.0,0.05655819]
[1731360707581,0.414922,87847.0,87828.0,0.05655819]
[1731360708749,0.170766,87841.0,87828.0,0.05655819]
[1731360708947,0.414922,87847.0,87828.0,0.05655819]
[1731360709152,0.414922,87847.0,87827.0,0.0008537]
[1731360709153,0.0462,87846.0,87831.0,0.170766]
[1731360709368,0.0462,87846.0,87827.0,0.0008537]
[1731360709369,0.170766,87836.0,87828.0,0.05655819]
[1731360709649,0.1401,87845.0,87828.0,0.05655819]
[1731360709869,0.005,87843.0,87828.0,0.05655819]
[1731360710075,0.005,87843.0,87829.0,0.170766]
[1731360710257,0.414922,87842.0,87828.0,0.05619393]
[1731360710452,0.1401,87845.0,87828.0,0.05619393]
[1731360710453,0.170766,87841.0,87828.0,0.05619393]
[1731360711036,0.107498,87845.0,87828.0,0.05619393]
[1731360711240,0.062058,87845.0,87828.0,0.05619393]
[1731360711440,0.170766,87847.0,87832.0,0.05665136]
[1731360711672,0.170766,87847.0,87828.0,0.005]
[1731360711673,0.170766,87847.0,87829.0,0.05643382]
[1731360711866,0.170766,87847.0,87828.0,0.05619393]
[1731360712066,0.079886,87847.0,87828.0,0.05619393]
[1731360712647,0.170766,87846.0,87828.0,0.05619393]
[1731360713158,0.0771,87849.0,87828.0,0.05619393]
[1731360713159,0.0771,87849.0,87829.0,0.170766]
[1731360713534,0.170766,87848.0,87831.0,0.05689037]
[1731360713946,0.0771,87849.0,87831.0,0.05689037]
[1731360714126,0.125326,87848.0,87831.0,0.05689037]
[1731360714339,0.03166,87849.0,87847.0,0.05683085]
[1731360714558,0.0498,87856.0,87835.0,0.170766]
[1731360714559,0.0498,87856.0,87852.0,0.05696609]
[1731360715155,2.63758121,87857.0,87856.0,0.0612395]
[1731360715632,2.80250321,87857.0,87856.0,0.0612395]
[1731360716029,2.77978321,87857.0,87856.0,0.0612395]
[1731360716253,2.71162321,87857.0,87856.0,0.0662395]
[1731360716459,2.54475121,87857.0,87856.0,0.0712395]
[1731360717074,2.43115121,87857.0,87856.0,0.0662395]
[1731360717284,2.43115121,87857.0,87856.0,0.0612395]
[1731360717502,2.43115121,87857.0,87854.0,0.0564475]
[1731360717697,2.43115121,87857.0,87854.0,0.005]
[1731360717931,2.43115121,87857.0,87855.0,0.05658057]
[1731360718131,2.42927972,87857.0,87855.0,0.05658057]
[1731360718347,2.28286922,87857.0,87855.0,0.05658057]
[1731360718560,2.44779122,87857.0,87846.0,0.05637386]
[1731360718765,2.44779122,87857.0,87852.0,0.005]
[1731360718967,0.170766,87855.0,87840.0,0.05647366]
[1731360719208,2.44779122,87857.0,87831.0,0.170766]
[1731360719209,0.164922,87854.0,87841.0,0.170766]
[1731360719412,0.164922,87854.0,87842.0,0.05667802]
[1731360719632,0.164922,87853.0,87842.0,0.05667802]
[1731360719860,0.164922,87853.0,87833.0,0.05630733]
[1731360720078,0.164922,87853.0,87832.0,0.170766]
[1731360720079,0.051322,87853.0,87838.0,0.05650406]
[1731360720273,0.170766,87847.0,87838.0,0.05650406]
[1731360720496,0.051322,87853.0,87838.0,0.05650406]
[1731360720925,0.051322,87853.0,87836.0,0.05608001]
[1731360721145,0.170766,87846.0,87829.0,0.05643382]
[1731360721376,0.170766,87856.0,87829.0,0.05643382]
[1731360721377,0.0458,87844.0,87829.0,0.05643382]
[1731360721589,0.0458,87844.0,87830.0,0.170766]
[1731360721998,0.0458,87844.0,87829.0,0.05643382]
[1731360722243,0.170766,87843.0,87829.0,0.05643382]
[1731360722920,0.0458,87844.0,87829.0,0.05643382]
[1731360723166,0.170766,87843.0,87829.0,0.05643382]
[1731360723387,0.17020434,87843.0,87829.0,0.05643382]
[1731360723624,0.051322,87842.0,87841.0,0.170766]
[1731360723828,0.03538639,87844.0,87843.0,0.05630772]
[1731360724062,0.03538639,87844.0,87843.0,0.05606497]
[1731360724285,0.03538639,87844.0,87843.0,0.0568297]
[1731360724703,0.03738639,87844.0,87843.0,0.0568297]
[1731360724937,0.002,87841.0,87829.0,0.05642954]
[1731360725292,0.03538639,87844.0,87829.0,0.05642954]
[1731360725495,0.03538639,87844.0,87834.0,0.05641249]
[1731360725701,0.0793,87845.0,87829.0,0.05642954]
[1731360725927,0.170766,87844.0,87829.0,0.05642954]
[1731360726260,0.0793,87845.0,87829.0,0.05642954]
[1731360726472,0.170766,87844.0,87829.0,0.05642954]
[1731360726616,0.170766,87843.0,87829.0,0.05642954]
[1731360727048,0.0793,87845.0,87829.0,0.05642954]
[1731360727271,0.170766,87856.0,87839.0,0.05653225]
[1731360727452,0.170766,87847.0,87839.0,0.05653225]
[1731360727658,0.170766,87847.0,87828.0,0.0008537]
[1731360727659,0.0812527,87866.0,87851.0,0.05623915]
[1731360727820,0.170766,87856.0,87853.0,0.05694517]
[1731360728015,2.27300822,87857.0,87853.0,0.05694517]
[1731360728215,2.18861307,87857.0,87853.0,0.05694517]
[1731360728542,2.18861307,87857.0,87856.0,0.005]
[1731360728708,2.15576651,87857.0,87842.0,0.05682885]
[1731360728922,2.15576651,87857.0,87851.0,0.05623915]
[1731360729070,2.11857881,87857.0,87856.0,0.06139043]
[1731360729498,2.11857881,87857.0,87856.0,0.05639043]
[1731360729917,2.11857881,87857.0,87856.0,0.005]
[1731360730116,2.04008346,87857.0,87856.0,0.06139043]
[1731360730286,2.04008346,87857.0,87856.0,0.06639043]
[1731360730639,1.98371635,87857.0,87856.0,0.06639043]
[1731360731117,1.85878678,87857.0,87856.0,0.06639043]
[1731360731338,1.81334678,87857.0,87856.0,0.06639043]
[1731360731889,1.75711368,87857.0,87856.0,0.06639043]
[1731360732091,1.66623368,87857.0,87856.0,0.06639043]
[1731360732290,1.64351368,87857.0,87856.0,0.06639043]
[1731360732693,1.64351368,87857.0,87854.0,0.05669519]
[1731360732919,1.64351368,87857.0,87828.0,0.0008537]
[1731360732920,0.170766,87855.0,87851.0,0.05623915]
[1731360733121,0.59112,87854.0,87851.0,0.05623915]
[1731360733326,0.59112,87854.0,87853.0,0.06194517]
[1731360733752,0.57111528,87854.0,87853.0,0.06194517]
[1731360733957,0.54839528,87854.0,87853.0,0.06194517]
[1731360734157,0.47812787,87854.0,87853.0,0.06194517]
[1731360734338,0.47812787,87854.0,87851.0,0.05623915]
[1731360734958,0.45540787,87854.0,87851.0,0.05623915]
[1731360735187,0.39964562,87854.0,87851.0,0.05623915]
[1731360735384,0.39964562,87854.0,87851.0,0.06123915]
[1731360735771,0.39964562,87847.0,87834.0,0.05641249]
[1731360735970,0.39964562,87846.0,87836.0,0.05603979]
[1731360736438,0.170766,87844.0,87830.0,0.05679949]
[1731360736579,0.002,87831.0,87830.0,0.05679949]
[1731360736775,0.002,87825.0,87824.0,0.22740566]
[1731360737022,0.002,87833.0,87824.0,0.22740566]
[1731360737212,0.002,87834.0,87809.0,0.05681683]
[1731360737415,0.002,87833.0,87809.0,0.05681683]
[1731360737631,0.170766,87832.0,87809.0,0.05681683]
[1731360737761,0.39964562,87831.0,87809.0,0.05681683]
[1731360737969,0.002,87829.0,87809.0,0.05681683]
[1731360738190,0.39964562,87831.0,87810.0,0.170766]
[1731360738444,0.170766,87845.0,87809.0,0.05681683]
[1731360738445,0.57041162,87830.0,87809.0,0.05681683]
[1731360738756,0.002,87829.0,87809.0,0.05681683]
[1731360738964,0.002,87825.0,87809.0,0.05681683]
[1731360739360,0.57041162,87830.0,87787.0,0.175766]
[1731360739361,0.002,87810.0,87798.0,0.170766]
[1731360739570,0.0811,87824.0,87807.0,0.170766]
[1731360739571,0.002,87821.0,87807.0,0.170766]
[1731360739782,0.170766,87820.0,87808.0,0.05662054]
[1731360740043,0.170766,87820.0,87788.0,0.0566681]
[1731360740251,0.002,87811.0,87788.0,0.05729757]
[1731360740417,0.002,87806.0,87788.0,0.0566681]
[1731360740628,0.002,87806.0,87779.0,0.05662912]
[1731360740831,0.002,87802.0,87779.0,0.05725866]
[1731360741028,0.002,87802.0,87780.0,0.00062953]
[1731360741193,0.002,87802.0,87780.0,0.00062952]
[1731360741399,0.002,87801.0,87780.0,0.00062952]
[1731360741599,0.57041162,87805.0,87780.0,0.00062952]
[1731360741600,0.57041162,87805.0,87781.0,0.05609668]
[1731360741900,0.57041162,87805.0,87782.0,0.00062952]